bitfinex-derivatives/quotes_BTCF0:USTF0_20240815
["timestamp","ask_amount","ask_price","bid_price","bid_amount"]
[1723729448914,0.54013171,59225.0,59224.0,0.445221]
[1723729449329,0.535,59225.0,59224.0,0.445221]
[1723729449629,0.77136533,59225.0,59224.0,0.445221]
[1723729449918,0.77136533,59225.0,59224.0,0.084421]
[1723729450321,0.77536533,59225.0,59224.0,0.445221]
[1723729450516,0.77036533,59225.0,59224.0,0.445221]
[1723729451122,0.76736533,59225.0,59224.0,0.454221]
[1723729451621,0.531,59225.0,59224.0,0.539642]
[1723729452024,0.531,59225.0,59224.0,0.452221]
[1723729452725,0.531,59225.0,59224.0,0.536642]
[1723729452915,0.531,59225.0,59224.0,0.452221]
[1723729453526,0.531,59225.0,59224.0,0.447221]
[1723729453722,0.531,59225.0,59224.0,0.445221]
[1723729454223,0.76636533,59225.0,59224.0,0.445221]
[1723729454417,0.76836533,59225.0,59224.0,0.090421]
[1723729454619,0.76836533,59225.0,59224.0,0.451221]
[1723729455222,0.76836533,59225.0,59224.0,0.535642]
[1723729455422,0.76836533,59225.0,59224.0,0.454221]
[1723729456723,0.76736533,59225.0,59224.0,0.455221]
[1723729457021,0.76736533,59225.0,59224.0,0.446221]
[1723729457022,0.76636533,59225.0,59224.0,0.446221]
[1723729457424,0.76736533,59225.0,59224.0,0.447221]
[1723729458024,0.86360802,59225.0,59224.0,0.001]
[1723729458328,1.14098902,59225.0,59217.0,0.08443]
[1723729458719,1.14098902,59225.0,59215.0,0.084433]
[1723729458918,1.14098902,59225.0,59217.0,0.08443]
[1723729459425,1.14098902,59225.0,59212.0,0.7257]
[1723729459426,0.76836533,59225.0,59224.0,0.084421]
[1723729459619,0.76836533,59225.0,59224.0,0.449321]
[1723729460316,0.76736533,59225.0,59223.0,0.3608]
[1723729460525,0.76636533,59225.0,59223.0,0.3608]
[1723729460715,1.12716533,59225.0,59224.0,0.001]
[1723729461114,0.76636533,59225.0,59224.0,0.001]
[1723729461317,0.76636533,59225.0,59219.0,0.084427]
[1723729461514,0.76636533,59225.0,59223.0,0.002]
[1723729461927,0.76636533,59225.0,59224.0,0.084421]
[1723729462131,0.77036533,59225.0,59224.0,0.449321]
[1723729462315,0.77036533,59225.0,59224.0,0.618163]
[1723729462520,0.00025334,59232.0,59224.0,1.8805505]
[1723729462715,0.37025334,59232.0,59231.0,0.894522]
[1723729462932,0.37025334,59232.0,59231.0,0.810111]
[1723729463831,0.37025334,59232.0,59231.0,0.894522]
[1723729464028,0.37025334,59232.0,59231.0,1.801002]
[1723729464328,0.3608,59251.0,59231.0,1.801002]
[1723729464329,0.4573,59261.0,59231.0,1.63218]
[1723729464525,0.9905,59258.0,59255.0,0.084376]
[1723729464723,0.9905,59258.0,59253.0,0.3608]
[1723729464724,0.20216489,59257.0,59253.0,0.3608]
[1723729464923,0.70216489,59257.0,59253.0,0.3608]
[1723729465228,0.70216489,59257.0,59253.0,0.445179]
[1723729465531,0.70216489,59257.0,59253.0,0.3608]
[1723729466127,0.70216489,59257.0,59249.0,0.00025334]
[1723729466128,1.05797447,59256.0,59249.0,0.00025334]
[1723729466321,0.72089447,59256.0,59249.0,0.00025334]
[1723729466830,0.18849117,59255.0,59249.0,0.00025334]
[1723729467127,0.67849117,59255.0,59249.0,0.00025334]
[1723729467335,0.18804921,59254.0,59249.0,0.00025334]
[1723729467531,0.51,59254.0,59249.0,0.00025334]
[1723729467724,0.00170901,59253.0,59252.0,0.084381]
[1723729467922,0.40170901,59253.0,59252.0,0.449281]
[1723729468323,0.4,59253.0,59252.0,0.449281]
[1723729468523,0.40170901,59253.0,59252.0,0.084381]
[1723729469029,0.40170901,59253.0,59252.0,0.811081]
[1723729469030,0.41570901,59253.0,59252.0,0.811081]
[1723729469230,0.414,59253.0,59252.0,0.895462]
[1723729470427,0.428,59253.0,59252.0,0.895462]
[1723729470628,0.268,59253.0,59252.0,1.886163]
[1723729472547,0.408,59253.0,59252.0,0.811081]
[1723729472928,0.408,59253.0,59249.0,0.00025334]
[1723729472929,0.084384,59250.0,59249.0,0.00025334]
[1723729473135,0.084384,59250.0,59241.0,0.3608]
[1723729473136,0.49,59250.0,59241.0,0.3608]
[1723729473335,0.4764,59249.0,59245.0,0.3649]
[1723729473536,0.9664,59249.0,59248.0,0.084386]
[1723729474041,1.16172757,59249.0,59248.0,0.084386]
[1723729474929,1.17372757,59249.0,59248.0,0.084386]
[1723729475745,1.18672757,59249.0,59248.0,0.084386]
[1723729476130,1.18672757,59249.0,59245.0,0.44929]
[1723729476631,1.18672757,59249.0,59246.0,0.3608]
[1723729476831,1.18672757,59249.0,59248.0,0.084386]
[1723729477636,1.18372757,59249.0,59248.0,0.084386]
[1723729477837,0.70432757,59249.0,59248.0,1.075132]
[1723729478032,0.509,59249.0,59248.0,1.159518]
[1723729478231,0.512,59249.0,59248.0,1.075132]
[1723729478430,0.512,59249.0,59248.0,0.675132]
[1723729478625,0.502,59249.0,59248.0,0.675132]
[1723729478933,0.515,59249.0,59248.0,0.675132]
[1723729479133,0.515,59249.0,59248.0,0.084386]
[1723729479335,0.515,59249.0,59241.0,0.3608]
[1723729479546,0.71032757,59249.0,59239.0,0.3608]
[1723729479737,0.71032757,59249.0,59245.0,0.3649]
[1723729479738,0.69832757,59249.0,59245.0,0.3649]
[1723729480037,0.69932757,59249.0,59248.0,0.088386]
[1723729480241,0.69932757,59249.0,59248.0,0.257158]
[1723729480427,0.69932757,59249.0,59248.0,0.253158]
[1723729480428,0.69832757,59249.0,59248.0,0.253158]
[1723729480627,0.504,59249.0,59248.0,1.524418]
[1723729480933,0.504,59249.0,59248.0,0.618058]
[1723729481139,0.503,59249.0,59248.0,0.450286]
[1723729481330,0.491,59249.0,59248.0,0.006]
[1723729481526,0.68632757,59249.0,59248.0,0.006]
[1723729481733,0.77071257,59249.0,59248.0,0.006]
[1723729481935,0.084387,59248.0,59245.0,0.33304]
[1723729482240,0.00341854,59247.0,59245.0,0.33304]
[1723729482540,0.00341854,59247.0,59235.0,0.7257]
[1723729482541,0.3608,59246.0,59235.0,0.7257]
[1723729482837,0.4698,59245.0,59240.0,0.084397]
[1723729483143,1.17538459,59245.0,59235.0,0.7257]
[1723729483327,0.1861171,59244.0,59235.0,0.7257]
[1723729483527,0.7161171,59244.0,59235.0,0.7257]
[1723729483739,0.3608,59241.0,59235.0,0.7257]
[1723729483931,0.8808,59241.0,59235.0,0.810105]
[1723729484133,0.20814926,59240.0,59235.0,0.810105]
[1723729484331,0.92558065,59240.0,59235.0,0.3608]
[1723729485042,0.74814926,59240.0,59235.0,0.3608]
[1723729485438,0.75114926,59240.0,59235.0,0.3608]
[1723729485837,0.084404,59236.0,59235.0,0.3608]
[1723729486032,0.96369222,59236.0,59228.0,0.001]
[1723729486234,1.16326707,59236.0,59228.0,0.001]
[1723729486542,1.16326707,59236.0,59225.0,0.084419]
[1723729487038,1.16326707,59236.0,59226.0,0.084418]
[1723729487244,1.07886307,59236.0,59228.0,0.084415]
[1723729487543,1.07886307,59236.0,59224.0,0.08442]
[1723729487739,0.084414,59229.0,59222.0,0.3608]
[1723729487942,0.084417,59227.0,59222.0,0.3608]
[1723729488152,0.5,59227.0,59222.0,0.3608]
[1723729488443,0.3608,59223.0,59209.0,0.3608]
[1723729488633,0.084424,59222.0,59211.0,0.320839]
[1723729488938,0.97943519,59222.0,59211.0,0.2364]
[1723729489143,0.78748589,59222.0,59214.0,0.084434]
[1723729489536,0.78773923,59222.0,59211.0,0.320838]
[1723729489938,0.17934335,59221.0,59211.0,0.320838]
[1723729490132,0.71934335,59221.0,59211.0,0.320838]
[1723729490334,0.00342163,59220.0,59213.0,0.084436]
[1723729490542,0.54342163,59220.0,59210.0,0.084441]
[1723729490840,0.54342163,59220.0,59212.0,0.084437]
[1723729491046,0.54342163,59220.0,59213.0,0.084436]
[1723729491340,0.54342163,59220.0,59211.0,0.004]
[1723729491545,0.54342163,59220.0,59209.0,0.3608]
[1723729491546,0.54442163,59220.0,59213.0,0.004]
[1723729491931,0.54442163,59220.0,59214.0,0.084435]
[1723729492132,0.54442163,59220.0,59213.0,0.004]
[1723729492348,0.54442163,59220.0,59213.0,0.088436]
[1723729492546,0.541,59220.0,59219.0,0.529656]
[1723729492840,0.542,59220.0,59219.0,0.445228]
[1723729494050,0.542,59220.0,59217.0,0.084431]
[1723729494738,0.541,59220.0,59217.0,0.084431]
[1723729494935,0.541,59220.0,59214.0,0.084435]
[1723729494936,0.24662997,59219.0,59214.0,0.084435]
[1723729495144,0.74662997,59219.0,59211.0,0.084439]
[1723729495350,0.74662997,59219.0,59212.0,0.084437]
[1723729495644,0.74662997,59219.0,59217.0,0.001]
[1723729496048,0.74662997,59219.0,59214.0,0.003]
[1723729496447,0.74662997,59219.0,59214.0,0.087435]
[1723729496639,0.75848661,59219.0,59214.0,0.084435]
[1723729496845,0.76448661,59219.0,59212.0,0.002]
[1723729497052,0.76448661,59219.0,59215.0,0.084433]
[1723729497645,0.76048661,59219.0,59215.0,0.084433]
[1723729498451,0.76148661,59219.0,59207.0,0.37252447]
[1723729498654,0.76148661,59219.0,59215.0,0.084433]
[1723729499149,0.76148661,59219.0,59196.0,0.3649]
[1723729499150,0.084436,59214.0,59196.0,0.3649]
[1723729499353,0.084436,59214.0,59194.0,0.6893]
[1723729499354,0.3608,59204.0,59194.0,0.36176]
[1723729499560,0.3608,59204.0,59193.0,0.23648]
[1723729499561,0.3608,59195.0,59187.0,0.3608]
[1723729499750,0.8708,59195.0,59187.0,0.3608]
[1723729500058,0.25299716,59194.0,59190.0,0.3649]
[1723729500255,0.39,59194.0,59193.0,0.445265]
[1723729500444,0.17,59194.0,59193.0,1.03653]
[1723729500650,0.00025334,59199.0,59198.0,0.084458]
[1723729500949,0.4668,59217.0,59198.0,0.084458]
[1723729500950,0.4517,59217.0,59213.0,0.084436]
[1723729501270,0.4517,59217.0,59208.0,0.084443]
[1723729501271,0.2527567,59213.0,59208.0,0.084443]
[1723729501553,0.2527567,59213.0,59204.0,0.3649]
[1723729501554,0.53,59213.0,59204.0,0.3649]
[1723729501748,0.53,59213.0,59208.0,0.3608]
[1723729501948,0.53,59213.0,59212.0,0.084438]
[1723729502152,0.25314118,59212.0,59208.0,0.3608]
[1723729502346,0.79314118,59212.0,59211.0,0.084439]
[1723729502550,0.54,59212.0,59211.0,0.084439]
[1723729503448,0.54,59212.0,59208.0,0.3608]
[1723729503755,0.54,59212.0,59205.0,0.00025334]
[1723729503957,0.79778155,59211.0,59205.0,0.00025334]
[1723729504161,1.33778155,59211.0,59205.0,0.00025334]
[1723729504747,0.79199553,59211.0,59210.0,0.445241]
[1723729504950,0.016,59212.0,59211.0,0.168878]
[1723729505149,0.00481501,59212.0,59211.0,0.759997]
[1723729505348,0.4504,59235.0,59212.0,0.50664]
[1723729505557,0.94207451,59235.0,59228.0,0.3649]
[1723729505760,0.49167451,59235.0,59234.0,0.084406]
[1723729505963,0.48,59235.0,59232.0,0.3608]
[1723729506149,0.48,59235.0,59228.0,0.084414]
[1723729506150,0.3608,59233.0,59228.0,0.084414]
[1723729506352,0.9208,59233.0,59225.0,0.3608]
[1723729506669,0.00684055,59232.0,59228.0,0.084414]
[1723729506863,0.50684055,59232.0,59225.0,0.00025334]
[1723729507166,0.50684055,59232.0,59225.0,0.36105334]
[1723729507457,0.084418,59226.0,59225.0,0.36105334]
[1723729507663,0.594418,59226.0,59225.0,0.36105334]
[1723729507851,0.51,59226.0,59225.0,0.36105334]
[1723729508057,0.73781421,59226.0,59225.0,0.44547234]
[1723729508265,0.51,59226.0,59225.0,0.44547234]
[1723729509061,0.515,59226.0,59225.0,0.44547234]
[1723729509456,0.74965476,59226.0,59225.0,0.00025334]
[1723729509657,0.74965476,59226.0,59219.0,0.3608]
[1723729509858,0.084421,59224.0,59214.0,0.084434]
[1723729510159,0.01111975,59223.0,59218.0,0.3608]
[1723729510356,0.52111975,59223.0,59222.0,0.084424]
[1723729510551,0.52111975,59223.0,59222.0,0.168848]
[1723729510552,0.35,59223.0,59222.0,0.168848]
[1723729510752,0.5,59223.0,59222.0,0.590984]
[1723729511060,0.5,59223.0,59218.0,0.3608]
[1723729511268,0.5,59223.0,59222.0,0.168848]
[1723729511759,0.502,59223.0,59222.0,0.084424]
[1723729513254,0.502,59223.0,59220.0,0.3608]
[1723729513462,1.10258665,59223.0,59218.0,0.003]
[1723729513661,0.4857,59222.0,59218.0,0.003]
[1723729513863,0.9957,59222.0,59221.0,0.084425]
[1723729514258,1.23719739,59222.0,59221.0,0.084425]
[1723729514459,1.23719739,59222.0,59218.0,0.084429]
[1723729514657,1.23719739,59222.0,59217.0,0.00025334]
[1723729514968,0.445229,59218.0,59217.0,0.00025334]
[1723729515265,0.445229,59218.0,59217.0,0.08468434]
[1723729515266,0.92764356,59218.0,59217.0,0.08468434]
[1723729515567,0.92764356,59218.0,59217.0,1.07571534]
[1723729515568,0.56,59218.0,59217.0,1.07571534]
[1723729515760,0.56,59218.0,59217.0,0.99228434]
[1723729515961,0.56,59218.0,59217.0,0.08568434]
[1723729516254,0.56,59218.0,59217.0,0.08468434]
[1723729516462,0.562,59218.0,59217.0,0.08468434]
[1723729517769,0.81034095,59218.0,59217.0,0.00225334]
[1723729518067,0.89276995,59218.0,59217.0,0.00425334]
[1723729518265,0.80834095,59218.0,59217.0,0.00425334]
[1723729519170,0.80834095,59218.0,59217.0,0.08668434]
[1723729519354,0.81434095,59218.0,59217.0,0.08668434]
[1723729520254,0.566,59218.0,59217.0,0.08668434]
[1723729520460,0.566,59218.0,59217.0,0.08468434]
[1723729520654,0.568,59218.0,59217.0,0.00025334]
[1723729520862,0.568,59218.0,59217.0,0.08468434]
[1723729521065,0.562,59218.0,59217.0,0.08468434]
[1723729521368,0.81534095,59218.0,59217.0,0.00325334]
[1723729521665,0.81534095,59218.0,59205.0,0.3608]
[1723729521855,0.4898,59217.0,59205.0,0.3608]
[1723729522058,1.0398,59217.0,59207.0,0.3649]
[1723729522255,0.01112275,59216.0,59207.0,0.3649]
[1723729522466,0.084438,59213.0,59205.0,0.3608]
[1723729522664,0.3608,59210.0,59194.0,0.7257]
[1723729522881,0.3608,59205.0,59194.0,0.72658]
[1723729523058,0.89914865,59205.0,59194.0,0.810163]
[1723729523264,0.02396146,59204.0,59197.0,0.084458]
[1723729523564,0.02396146,59204.0,59194.0,0.7257]
[1723729523565,0.52396146,59204.0,59194.0,0.811163]
[1723729523762,0.52396146,59204.0,59195.0,0.084462]
[1723729523965,0.52396146,59204.0,59194.0,0.36168]
[1723729524272,0.3608,59197.0,59192.0,0.00012701]
[1723729524460,0.8608,59197.0,59194.0,0.007]
[1723729524665,0.25422149,59196.0,59195.0,0.084462]
[1723729524861,0.72422149,59196.0,59195.0,0.445262]
[1723729525068,0.32649331,59196.0,59195.0,1.520986]
[1723729525267,0.30545077,59196.0,59195.0,1.520986]
[1723729525658,0.30545077,59196.0,59195.0,1.991986]
[1723729526058,0.30545077,59196.0,59195.0,1.436524]
[1723729526258,0.30545077,59196.0,59195.0,1.44785897]
[1723729526866,0.30645077,59196.0,59195.0,0.97039697]
[1723729527169,0.30645077,59196.0,59195.0,0.46359697]
[1723729527170,0.47645077,59196.0,59195.0,0.46359697]
[1723729527473,0.30645077,59196.0,59195.0,1.45485897]
[1723729527974,0.30745077,59196.0,59195.0,1.45485897]
[1723729528270,0.30745077,59196.0,59195.0,1.37039697]
[1723729529173,0.46745077,59196.0,59195.0,0.46359697]
[1723729529682,0.80422369,59196.0,59195.0,0.007]
[1723729529864,0.71976269,59196.0,59195.0,0.007]
[1723729530067,0.71976269,59196.0,59195.0,0.3719]
[1723729530276,0.71976269,59196.0,59195.0,0.456362]
[1723729530481,0.46745077,59196.0,59195.0,1.532086]
[1723729530771,0.44745077,59196.0,59195.0,0.456362]
[1723729531769,0.44645077,59196.0,59195.0,0.46094826]
[1723729531979,0.44745077,59196.0,59195.0,0.46694826]
[1723729532375,0.44745077,59196.0,59195.0,0.3709]
[1723729532376,0.69992352,59196.0,59195.0,0.3709]
[1723729533075,0.69992352,59196.0,59195.0,0.006]
[1723729533973,0.69992352,59196.0,59195.0,0.090462]
[1723729534167,0.7114555,59196.0,59195.0,0.090462]
[1723729534762,0.7114555,59196.0,59195.0,0.006]
[1723729535370,0.7114555,59196.0,59195.0,0.090462]
[1723729536673,0.69992352,59196.0,59195.0,0.090462]
[1723729539763,0.69992352,59196.0,59195.0,0.006]
[1723729540272,0.5068,59195.0,59177.0,0.2921]
[1723729540476,0.3608,59180.0,59179.0,0.084485]
[1723729540680,0.9108,59180.0,59179.0,0.084485]
[1723729540970,0.92193459,59180.0,59179.0,0.67589]
[1723729541177,0.55012701,59180.0,59179.0,1.160375]
[1723729541380,0.38012701,59180.0,59179.0,1.160375]
[1723729541867,0.38012701,59180.0,59179.0,0.16897]
[1723729541868,0.53012701,59180.0,59179.0,0.16897]
[1723729542079,0.53012701,59180.0,59179.0,0.084485]
[1723729542575,0.53112701,59180.0,59179.0,0.084485]
[1723729542979,0.53112701,59180.0,59177.0,0.2921]
[1723729543276,0.78578428,59180.0,59178.0,0.084485]
[1723729543662,0.78578428,59180.0,59179.0,0.084485]
[1723729544272,0.7973143,59180.0,59179.0,0.084485]
[1723729544464,0.7973143,59180.0,59177.0,0.2921]
[1723729544670,0.78578428,59180.0,59179.0,0.084485]
[1723729544865,0.78578428,59180.0,59175.0,0.011337]
[1723729545071,0.44529,59176.0,59165.0,0.01158039]
[1723729545273,0.44529,59176.0,59163.0,0.2921]
[1723729545274,0.3608,59169.0,59163.0,0.2921]
[1723729545479,0.9208,59169.0,59168.0,0.084501]
[1723729545779,0.56012701,59169.0,59168.0,0.084501]
[1723729545977,0.81215192,59169.0,59168.0,0.084501]
[1723729547274,0.81215192,59169.0,59163.0,0.30377311]
[1723729547473,0.4595,59168.0,59163.0,0.30377311]
[1723729547675,0.54,59168.0,59167.0,0.084502]
[1723729547882,0.00156001,59171.0,59170.0,0.084498]
[1723729548071,0.00156001,59171.0,59170.0,0.168996]
[1723729548072,0.35,59171.0,59170.0,0.168996]
[1723729549177,0.351,59171.0,59170.0,0.084498]
[1723729549574,0.351,59171.0,59166.0,0.3608]
[1723729549575,0.001,59169.0,59166.0,0.3608]
[1723729549879,0.531,59169.0,59168.0,0.084501]
[1723729550279,0.084502,59167.0,59153.0,0.2921]
[1723729550585,0.3608,59158.0,59153.0,0.2921]
[1723729550774,0.9208,59158.0,59153.0,0.2921]
[1723729550973,0.9208,59158.0,59156.0,0.084517]
[1723729551178,0.9208,59158.0,59154.0,0.084519]
[1723729551385,0.25419031,59157.0,59152.0,0.084523]
[1723729551575,0.3608,59153.0,59148.0,0.00013056]
[1723729551772,0.8508,59153.0,59151.0,0.084524]
[1723729552086,0.10891778,59152.0,59151.0,0.084524]
[1723729552383,0.084526,59151.0,59131.0,0.3654]
[1723729552581,0.3608,59145.0,59136.0,0.084546]
[1723729552778,0.93937111,59145.0,59131.0,0.3654]
[1723729552977,0.48482875,59144.0,59131.0,0.3654]
[1723729553183,1.05482875,59144.0,59131.0,0.7262]
[1723729553489,0.3608,59140.0,59131.0,0.3608]
[1723729553674,0.52,59140.0,59139.0,0.084542]
[1723729553878,0.52,59140.0,59139.0,0.449942]
[1723729554079,0.52,59140.0,59139.0,0.084542]
[1723729555176,0.88093056,59140.0,59139.0,0.084542]
[1723729555380,0.52013056,59140.0,59139.0,0.084542]
[1723729555577,0.52113056,59140.0,59139.0,0.084542]
[1723729555779,0.17113056,59140.0,59139.0,0.169084]
[1723729555981,0.00025357,59144.0,59139.0,0.592822]
[1723729556184,0.14,59144.0,59143.0,0.529872]
[1723729556482,0.3608,59159.0,59143.0,0.529872]
[1723729556483,0.3608,59159.0,59158.0,0.16903]
[1723729556690,0.7908,59159.0,59158.0,0.16903]
[1723729557082,0.7908,59159.0,59158.0,0.614345]
[1723729557083,0.43,59159.0,59158.0,0.614345]
[1723729557483,0.43,59159.0,59158.0,0.52983]
[1723729558086,0.13684571,59159.0,59158.0,0.614345]
[1723729558294,0.13684571,59159.0,59158.0,0.52983]
[1723729558596,0.13684571,59159.0,59158.0,0.614345]
[1723729558783,0.14184571,59159.0,59158.0,1.121465]
[1723729558981,0.29184571,59159.0,59158.0,0.45672387]
[1723729559193,0.29184571,59159.0,59158.0,0.445315]
[1723729559781,0.29184571,59159.0,59158.0,0.084515]
[1723729559979,0.29784571,59159.0,59158.0,0.445315]
[1723729560182,0.29784571,59159.0,59158.0,0.52983]
[1723729560684,0.29784571,59159.0,59158.0,0.445315]
[1723729561689,0.29784571,59159.0,59158.0,0.084515]
[1723729562386,0.29784571,59159.0,59158.0,0.52983]
[1723729562592,0.31784571,59159.0,59158.0,0.52983]
[1723729562791,0.31784571,59159.0,59158.0,0.445315]
[1723729563289,0.31784571,59159.0,59158.0,0.52983]
[1723729563492,0.31784571,59159.0,59158.0,0.16903]
[1723729563696,0.31784571,59159.0,59158.0,0.445315]
[1723729564280,0.31784571,59159.0,59158.0,0.52983]
[1723729565197,0.201,59159.0,59158.0,0.614345]
[1723729565382,0.00025357,59164.0,59163.0,0.253524]
[1723729565588,0.00025357,59164.0,59163.0,1.064232]
[1723729565789,0.00025357,59164.0,59163.0,1.886804]
[1723729565983,0.29025357,59164.0,59163.0,0.895216]
[1723729566483,0.25514858,59164.0,59163.0,1.486804]
[1723729566799,0.26714858,59164.0,59163.0,0.896216]
[1723729566993,0.084489,59177.0,59163.0,0.896216]
[1723729566994,0.0116492,59183.0,59177.0,0.084488]
[1723729567186,0.5,59183.0,59182.0,0.084481]
[1723729567681,0.75452466,59183.0,59170.0,0.3608]
[1723729567887,0.084486,59179.0,59170.0,0.3608]
[1723729568194,0.51,59179.0,59170.0,0.3608]
[1723729568498,0.51,59179.0,59178.0,0.084486]
[1723729570085,0.512,59179.0,59178.0,0.085486]
[1723729570291,0.526,59179.0,59178.0,0.086486]
[1723729570799,0.526,59179.0,59178.0,0.846904]
[1723729570997,0.526,59179.0,59178.0,1.399138]
[1723729570998,0.366,59179.0,59178.0,1.399138]
[1723729571186,0.366,59179.0,59178.0,0.999138]
[1723729571590,0.506,59179.0,59178.0,0.407692]
[1723729571997,0.499,59179.0,59178.0,0.407692]
[1723729572295,0.499,59179.0,59178.0,0.492178]
[1723729572493,0.357,59179.0,59178.0,1.41163485]
[1723729572811,0.357,59179.0,59178.0,1.49912085]
[1723729572812,0.35,59179.0,59178.0,1.49912085]
[1723729573292,0.5,59179.0,59178.0,0.324206]
[1723729573602,0.5,59179.0,59178.0,0.328206]
[1723729573797,0.5,59179.0,59178.0,0.412692]
[1723729574203,0.5,59179.0,59178.0,0.328206]
[1723729574403,0.5,59179.0,59178.0,0.862578]
[1723729574594,0.21313083,59179.0,59178.0,1.854024]
[1723729574897,0.36313083,59179.0,59178.0,0.778092]
[1723729575088,0.36313083,59179.0,59178.0,0.328206]
[1723729575489,0.36313083,59179.0,59178.0,0.324206]
[1723729575697,0.36313083,59179.0,59178.0,0.328206]
[1723729576705,0.36313083,59179.0,59178.0,0.007]
[1723729576706,0.61558376,59179.0,59178.0,0.007]
[1723729576898,0.084489,59177.0,59163.0,0.23668]
[1723729577200,1.09518892,59176.0,59171.0,0.084496]
[1723729577401,1.61518892,59176.0,59164.0,0.46121756]
[1723729577600,1.41929858,59176.0,59164.0,0.46121756]
[1723729577903,1.41929858,59176.0,59164.0,0.37671256]
[1723729578290,1.41929858,59176.0,59170.0,0.084497]
[1723729578494,1.41929858,59176.0,59164.0,0.37671256]
[1723729578495,1.41929858,59176.0,59166.0,0.00025357]
[1723729578700,1.41929858,59176.0,59175.0,0.084491]
[1723729580104,1.41929858,59176.0,59175.0,0.085491]
[1723729580506,1.3465,59176.0,59175.0,0.085491]
[1723729580802,2.5061241,59176.0,59175.0,0.001]
[1723729581007,0.084503,59167.0,59158.0,0.01135698]
[1723729581223,0.084503,59167.0,59151.0,0.6939]
[1723729581224,0.3608,59159.0,59151.0,0.3285]
[1723729581507,0.3608,59153.0,59142.0,0.00088]
[1723729581697,0.3608,59153.0,59151.0,0.084525]
[1723729581698,0.9108,59153.0,59151.0,0.084525]
[1723729581896,0.25465345,59152.0,59151.0,0.084525]
[1723729582095,0.72465345,59152.0,59147.0,0.084529]
[1723729582303,0.4774,59151.0,59142.0,0.01166263]
[1723729582502,0.9574,59151.0,59148.0,0.084529]
[1723729582693,0.9574,59151.0,59140.0,0.3285]
[1723729582694,0.11359955,59150.0,59140.0,0.3285]
[1723729582898,0.68359955,59150.0,59140.0,0.3285]
[1723729583298,0.68359955,59150.0,59144.0,0.08466031]
[1723729583501,0.68359955,59150.0,59145.0,0.084532]
[1723729583710,0.68359955,59150.0,59147.0,0.003]
[1723729584102,0.68359955,59150.0,59149.0,0.084528]
[1723729584506,0.68459955,59150.0,59149.0,0.084528]
[1723729584906,0.68459955,59150.0,59147.0,0.003]
[1723729585299,0.68559955,59150.0,59144.0,0.01212631]
[1723729585711,0.3608,59146.0,59144.0,0.01212631]
[1723729585898,0.8808,59146.0,59144.0,0.01012631]
[1723729586105,0.2529461,59145.0,59144.0,0.00012631]
[1723729586399,0.7729461,59145.0,59144.0,0.00012631]
[1723729586608,0.7729461,59145.0,59144.0,0.08466131]
[1723729586805,0.7729461,59145.0,59144.0,0.08666131]
[1723729587005,0.7729461,59145.0,59144.0,0.09766131]
[1723729587210,0.7729461,59145.0,59144.0,0.01312631]
[1723729587211,0.78417755,59145.0,59144.0,0.01312631]
[1723729587905,2.24915384,59145.0,59123.0,0.084563]
[1723729588111,0.3608,59127.0,59113.0,0.7262]
[1723729588310,0.3608,59121.0,59113.0,0.3608]
[1723729588511,0.9008,59121.0,59113.0,0.3608]
[1723729588816,0.00527652,59120.0,59119.0,0.084571]
[1723729589014,0.15527652,59120.0,59119.0,0.084571]
[1723729589204,0.00012631,59120.0,59119.0,0.449971]
[1723729589405,0.00012631,59120.0,59119.0,0.895342]
[1723729589804,0.00012631,59120.0,59119.0,1.802782]
[1723729590004,0.00012631,59120.0,59119.0,0.810771]
[1723729590205,0.00012631,59120.0,59119.0,0.084571]
[1723729590405,0.14112631,59120.0,59119.0,0.091571]
[1723729590607,0.00112631,59120.0,59119.0,0.091571]
[1723729591001,0.27112631,59120.0,59119.0,0.091571]
[1723729591201,0.52537186,59120.0,59119.0,0.007]
[1723729591409,0.52537186,59120.0,59113.0,0.086578]
[1723729591610,0.3608,59118.0,59113.0,0.086578]
[1723729591919,0.16904528,59117.0,59111.0,0.084582]
[1723729592110,0.3608,59112.0,59106.0,0.3285]
[1723729592308,0.00012423,59111.0,59100.0,0.3608]
[1723729592514,0.00012535,59110.0,59100.0,0.7262]
[1723729592813,0.00012535,59110.0,59109.0,0.16917]
[1723729592814,0.29012535,59110.0,59109.0,0.16917]
[1723729593011,0.15012535,59110.0,59109.0,0.56917]
[1723729593210,0.15012535,59110.0,59109.0,0.16917]
[1723729593211,0.31012535,59110.0,59109.0,0.16917]
[1723729593409,0.12487178,59110.0,59109.0,1.161275]
[1723729593712,0.20937878,59110.0,59109.0,0.445385]
[1723729593908,0.20937878,59110.0,59109.0,0.084585]
[1723729594119,0.21037878,59110.0,59109.0,0.089585]
[1723729595217,0.18037878,59110.0,59109.0,0.450385]
[1723729595408,0.18037878,59110.0,59109.0,0.089585]
[1723729595606,0.18137878,59110.0,59109.0,0.089585]
[1723729596114,0.62066696,59110.0,59082.0,0.084624]
[1723729596319,0.3608,59094.0,59085.0,0.00088]
[1723729596616,0.8408,59094.0,59093.0,0.084608]
[1723729597011,0.8408,59094.0,59081.0,0.084624]
[1723729597217,0.8408,59094.0,59093.0,0.084608]
[1723729597515,0.8418,59094.0,59093.0,0.084608]
[1723729598111,0.8418,59094.0,59093.0,0.06357357]
[1723729598513,0.171,59094.0,59093.0,0.42437357]
[1723729598821,0.084616,59088.0,59061.0,0.3654]
[1723729599024,0.3608,59076.0,59068.0,0.3654]
[1723729599215,0.3608,59076.0,59059.0,0.643756]
[1723729599216,0.3608,59071.0,59062.0,0.3654]
[1723729599528,0.00429842,59075.0,59069.0,0.3654]
[1723729599713,0.3608,59077.0,59076.0,0.084632]
[1723729600015,0.36096002,59077.0,59076.0,0.450032]
[1723729600219,0.3608,59084.0,59076.0,0.957832]
[1723729600521,0.3608,59084.0,59083.0,0.084622]
[1723729600522,0.7008,59084.0,59083.0,0.084622]